Cogmind - Beta 14 @@@ ROGUE MODE // 2025.03.13 @ 22:48:44 Player: ywiktor Result: Destroyed by NV-DCD(R) with Subdweller Machine Gun Performance ------------- Evolutions (0) 0 Regions Visited (2) 400 Robots Destroyed (22) 110 Value Destroyed (502) 502 Prototype IDs (0) 0 Alien Tech Used (0) 0 Bonus (0) 0 TOTAL SCORE: 1012 Bonus ------- None Cogmind --------- Core Integrity 0/250 Matter 184/300 Energy 125/125 System Corruption 0% Temperature Cool (0) Movement Walking (190) Ox1 Location -10/Subcaves Parts ------- > --- POWER (1) -------- Light Ion Engine > --- PROPULSION (2) --- Aluminum Leg Aluminum Leg > --- UTILITY (2) ------ Medium Storage Unit Makeshift Light Armor Plating > --- WEAPON (2) ------- Battle Rifle Grenade Launcher > --- INVENTORY (10) --- Light Ion Engine Aluminum Leg Aluminum Leg Light Armor Plating Light Armor Plating Scrap Shield EM Pulse Gun Heavy Battle Rifle Peak State ------------ > --- POWER ------------ Light Ion Engine > --- PROPULSION ------- Aluminum Leg Aluminum Leg > --- UTILITY ---------- Medium Storage Unit Makeshift Light Armor Plating > --- WEAPON ----------- Battle Rifle Grenade Launcher > --- INVENTORY -------- Light Ion Engine Aluminum Leg Aluminum Leg Aluminum Leg Light Armor Plating Light Armor Plating EM Pulse Gun Light Assault Rifle Light Assault Rifle Light Assault Rifle [Rating: 12] Favorites ----------- Power Light Ion Engine Engine Light Ion Engine Propulsion Aluminum Leg Leg Aluminum Leg Utility Small Storage Unit Storage Small Storage Unit Protection Light Armor Plating Weapon Light Assault Rifle Ballistic Gun Light Assault Rifle Launcher Grenade Launcher Build | -11 -10 -10 ------- Run | Yrd Mat Sub Slots Evolved . | . . . Power . | . . . Propulsion . | . . . Utility . | . . . Weapon . | . . . Parts Attached 18 | 6 8 4 Power 2 | 1 1 . Engine 2 | 1 1 . Core . | . . . Reactor . | . . . Propulsion 5 | 2 2 1 Treads . | . . . Leg 5 | 2 2 1 Wheel . | . . . Hover . | . . . Flight . | . . . Utility 4 | 1 2 1 Device . | . . . Storage 2 | 1 1 . Processor . | . . . Hackware . | . . . Protection 2 | . 1 1 Artifact . | . . . Weapon 7 | 2 3 2 Energy Gun . | . . . Energy Cannon . | . . . Ballistic Gun 6 | 2 3 1 Ballistic Cannon . | . . . Launcher 1 | . . 1 Special Weapon . | . . . Impact Weapon . | . . . Slashing Weapon . | . . . Piercing Weapon . | . . . Special Melee Weapon . | . . . Unidentified Prototypes . | . . . Parts Lost 3 | . 2 1 Power 1 | . 1 . Propulsion 1 | . . 1 Utility . | . . . Weapon 1 | . 1 . Highest Loss Streak 1 | . 1 1 To Critical Strikes . | . . . Average Slot Usage (%) 94 | . 92 97 Engine 13 | . 13 14 Leg 27 | . 28 25 Storage 14 | . 14 14 Protection 10 | . 7 14 Ballistic Gun 22 | . 27 14 Launcher 5 | . . 14 Peak Build Rating 12 | 6 7 12 Average Rating 7 | 4 6 10 On Entrance 4 | . 6 7 Naked Turns . | . . . Heaviest Build 22 | 13 19 22 Greatest Support 20 | 20 20 20 Greatest Overweight (x) 2 | 2 . 2 Average Overweight (x) . | . . . Largest Inventory Capacity 10 | 8 10 10 Average Capacity 8 | 6 8 10 Most Carried 10 | 2 9 10 Average Carried 7 | 1 6 9 Final Capacity 10 | 8 10 10 Final Carried 9 | 2 8 9 Class Distribution -------------------- 100% | Mutant Dominant Class ---------------- Mutant | -10/Materials Mutant | -10/Subcaves Resources | -11 -10 -10 ----------- Run | Yrd Mat Sub Matter Collected 674 | 260 279 135 Remotely . | . . . Salvage Created 543 | . 440 103 Parts 42 | . 36 6 Haulers Intercepted 2 | . 2 . Recyclers Shooed 2 | . 2 . Parts Field Recycled . | . . . Retrieved Matter . | . . . Parts Self-Destructed 5 | . . 5 Prevented . | . . . Kills | -11 -10 -10 ------- Run | Yrd Mat Sub Combat Hostiles Destroyed 20 | . 13 7 Guns 16 | . 13 3 AOE 4 | . . 4 Classes Destroyed 4 | . 3 1 Hauler 2 | . 2 . Swarmer 9 | . 6 3 Grunt 7 | . 7 . Subdweller 4 | . . 4 Best Kill Streak 3 | . 3 3 Combat Bots Only 3 | . 3 3 Max Kills in Single Turn 2 | . 1 2 Gunslinging . | . . . Exploded 1 | . . 1 Melee . | . . . Uniques/NPCs Destroyed . | . . . Combat | -11 -10 -10 -------- Run | Yrd Mat Sub Hostile Shots Fired 95 | . 66 29 Missed 30 | . 21 9 Damage Taken 860 | . 439 421 Core 266 | . 59 207 Absorbed by Shields . | . . . Core Remaining (%) 100 | 100 . . Volleys Fired 74 | . 56 18 Largest 2 | . 2 2 Hottest 55 | . 40 55 Shots Fired 141 | . 111 30 Gun 123 | . 111 12 Cannon . | . . . Launcher 18 | . . 18 Special . | . . . Kinetic 123 | . 111 12 Thermal . | . . . Explosive 18 | . . 18 Electromagnetic . | . . . Robot Hit Streak 20 | . 20 11 Robot Miss Streak 7 | . 7 3 Penetration Max . | . . . Secondary Targets 1 | . 1 . Max Gunslinging Chain 1 | . 1 . Shots Hit Robots 91 | . 72 19 Core Hits 38 | . 25 13 Critical Kills . | . . . Critical Parts Destroyed . | . . . Critical Strikes . | . . . Melee Attacks . | . . . Impact . | . . . Slashing . | . . . Piercing . | . . . Sneak Attacks . | . . . Combat Hostiles . | . . . Follow-up Attacks . | . . . Damage Inflicted 1832 | . 783 1049 Guns 909 | . 772 137 Cannons . | . . . Explosions 912 | . . 912 Melee . | . . . Ramming 11 | . 11 . Kinetic 909 | . 772 137 Thermal . | . . . Explosive 912 | . . 912 Electromagnetic . | . . . Impact . | . . . Slashing . | . . . Piercing . | . . . Highest Corruption . | . . . Average Corruption . | . . . Corruption Purged . | . . . Corruption Blocked . | . . . Overload Shots . | . . . Overflow Damage . | . . . Projectiles . | . . . Explosions . | . . . Melee . | . . . Knockbacks . | . . . Impact . | . . . Kinetic . | . . . Secondary . | . . . Self-Inflicted Damage 21 | . . 21 Shots 1 | . . 1 Rammed . | . . . Targets Rammed 1 | . 1 . Kicked 1 | . 1 . Crushed . | . . . Highest Temperature 271 | . 25 271 Average Temperature 27 | . 7 152 Received Heat Transfer 507 | . 156 351 Siege Activations . | . . . Robots Corrupted . | . . . Combat Hostiles . | . . . Parts Fried . | . . . Impact Corruptions . | . . . Robots Melted . | . . . Combat Hostiles . | . . . Parts Melted 1 | . . 1 Heat Transferred . | . . . Parts Sabotaged . | . . . Parts Stolen . | . . . Parts Stripped . | . . . Power Chain Reactions . | . . . Alert | -11 -10 -10 ------- Run | Yrd Mat Sub Peak Influence 261 | . 261 . Initial . | . . . Average 112 | . 118 . Maximum Alert Level 1 | . 1 . Low Security (%) 79 | 100 78 . Level 1 20 | . 21 . Level 2 . | . . . Level 3 . | . . . Level 4 . | . . . Level 5 . | . . . High Security . | . . . Max Security . | . . . Squads Dispatched 3 | . 3 . Investigation 2 | . 2 . Extermination . | . . . Reinforcement 1 | . 1 . Assault . | . . . Garrison . | . . . Intercept . | . . . Searches Triggered . | . . . Construction Impeded . | . . . Haulers Reinforced . | . . . Active Scanning Responses . | . . . Cargo Convoy Interrupts . | . . . Stealth | -11 -10 -10 --------- Run | Yrd Mat Sub Distress Signals 2 | . 2 . Communications Jammed . | . . . Distress Signals . | . . . Times Spotted 32 | . 24 8 Peak Tracking Total 4 | . 4 3 Tactical Retreats 2 | . 2 . Traps | -11 -10 -10 ------- Run | Yrd Mat Sub Traps Triggered 3 | . 2 1 Indirectly . | . . . Trap Hack Attempts . | . . . Triggered . | . . . Disarmed . | . . . Reprogrammed 3 | . 3 . Reused . | . . . Traps Extracted . | . . . Installed . | . . . Triggered . | . . . Machines | -11 -10 -10 ---------- Run | Yrd Mat Sub Machines Disabled 1 | . 1 . Max in Single Turn 1 | . 1 . Machines Repaired . | . . . Machines Dismantled . | . . . Machines Sabotaged . | . . . Overloaded Fab Kills . | . . . Hacking | -11 -10 -10 --------- Run | Yrd Mat Sub Machines Accessed 8 | . 7 1 Terminals 6 | . 6 . Fabricators . | . . . Repair Stations . | . . . Recycling Units 1 | . 1 . Scanalyzers . | . . . Garrison Access . | . . . Total Hacks 22 | . 19 3 Successful 16 | . 13 3 Failed 6 | . 6 . Catastrophic . | . . . Database Lockouts . | . . . Manual 13 | . 13 . Terminals 17 | . 17 . Fabricators . | . . . Repair Stations . | . . . Recycling Units 2 | . 2 . Scanalyzers . | . . . Garrison Access . | . . . Terminal Hacks 11 | . 8 3 Record 3 | . . 3 Robot Analysis 4 | . 4 . Emergency Access Points 1 | . 1 . Scanalyzer Index 1 | . 1 . Alert Level 1 | . 1 . Reprogram Traps 1 | . 1 . Fabricator Hacks . | . . . Repair Station Hacks . | . . . Recycling Unit Hacks 1 | . 1 . Retrieve Components 1 | . 1 . Scanalyzer . | . . . Garrison Access Hacks . | . . . Unauthorized Hacks 4 | . 4 . Terminals 3 | . 3 . Botnet 2 | . 2 . Operators 1 | . 1 . Fabricators . | . . . Repair Stations . | . . . Recycling Units 1 | . 1 . Tunnel 1 | . 1 . Scanalyzers . | . . . Garrison Access . | . . . Data Cores Recovered . | . . . Used . | . . . Hacking Detections 6 | . 6 . Full Trace Events . | . . . Feedback Events . | . . . Feedback Blocked . | . . . Robot Schematics Acquired . | . . . Robots Built . | . . . Authchips . | . . . Time . | . . . Total Robot Build Rating . | . . . Part Schematics Acquired . | . . . Parts Built . | . . . Authchips . | . . . Time . | . . . Total Part Build Rating . | . . . Parts Repaired . | . . . Time . | . . . Parts Recycled . | . . . Recycled Matter . | . . . Retrieved Matter . | . . . Retrieved Components 10 | . 10 . Parts Scanalyzed . | . . . Part Schematics Acquired . | . . . Parts Damaged . | . . . Bothacking | -11 -10 -10 ------------ Run | Yrd Mat Sub Used RIF Installer . | . . . Robots Hacked . | . . . Non-combat . | . . . Combat . | . . . Robot Hacks Applied . | . . . Relay Couplers Released . | . . . Fabnet Peak Effective % . | . . . Robots Rewired . | . . . Allies Hacked . | . . . Hacks Repelled . | . . . Allies | -11 -10 -10 -------- Run | Yrd Mat Sub Total Allies . | . . . Largest Group . | . . . Highest-Rated Group . | . . . Highest-Rated Ally . | . . . Total Orders . | . . . Ally Attacks . | . . . Total Damage . | . . . Kills . | . . . Allies Corrupted . | . . . Allies Melted . | . . . Intel | -11 -10 -10 ------- Run | Yrd Mat Sub Robot Analysis Total 4 | . 4 . Derelict Logs Recovered . | . . . Drone Launches . | . . . Drone Recoveries . | . . . Exploration | -11 -10 -10 ------------- Run | Yrd Mat Sub Turns Passed 1724 | 59 1047 618 Spaces Moved 1016 | 43 655 318 Core 14 | 14 . . Treads . | . . . Legs 1002 | 29 655 318 Wheels . | . . . Hover . | . . . Flight . | . . . Fastest Speed 50 | 50 120 120 Average Speed 137 | 111 120 175 Slowest Speed 260 | 150 120 260 Overloaded Moves . | . . . Propulsion Burnouts . | . . . Robots Hopped . | . . . Cave-ins Triggered . | . . . Exploration Rate (%) 37 | 3 94 14 Regions Visited 2 Branch Regions 1 Pre-discovered Areas 1 | . 1 . Known Exits Taken . | . . . Unknown Exits Taken 2 | 1 1 . Scrap Searched 3 | . . 3 Spaces Dug 6 | . . 6 Terrain Destroyed 98 | . . 98 Melee . | . . . Projectile . | . . . AOE 98 | . . 98 Terrain Rammed . | . . . Walls Destroyed . | . . . Machines Disabled . | . . . Actions | -11 -10 -10 --------- Run | Yrd Mat Sub Total 1216 | 52 817 347 Wait 85 | . 85 . Move 1014 | 42 654 318 Hop . | . . . Pick Up 16 | 4 9 3 Fast Attach 7 | 4 3 . Attach 5 | 2 2 1 Detach . | . . . Swap 6 | . 3 3 Drop 8 | . 4 4 Fire 74 | . 56 18 Melee . | . . . Ram . | . . . Kick 1 | . 1 . Crush . | . . . Escape Stasis . | . . . Rewire . | . . . Trap . | . . . Miscellaneous . | . . . Route ------- -11/Scrapyard -10/Materials (discovered 6 exits: [*Mat x3] / [*Min x2] / *Sub) -10/Subcaves (discovered 3 exits: Mat x2 / Rec) History --------- Turn | Location | Event 8 | -11/Scrapyard | Discovered new exit (range 15) 60 | -11/Scrapyard | Entered Materials 194 | -10/Materials | Discovered new exit (range 15) 308 | -10/Materials | Build established: Mutant 405 | -10/Materials | Discovered new exit (range 10) 680 | -10/Materials | Discovered new exit (range 15) 886 | -10/Materials | Discovered new exit (range 4) 923 | -10/Materials | Discovered new exit (range 11) 1096 | -10/Materials | Discovered new exit (range 10) 1107 | -10/Materials | Entered Subcaves 1149 | -10/Subcaves | Visited Clippyterm 1152 | -10/Subcaves | Identified exit to Materials 1152 | -10/Subcaves | Identified exit to Recycling 1152 | -10/Subcaves | Learned Factory trap positions 1414 | -10/Subcaves | Ambushed by Subdwellers from Twisted Machinery 1419 | -10/Subcaves | Core integrity fell below 50% 1715 | -10/Subcaves | Core integrity fell below 20% 1725 | -10/Subcaves | Destroyed by NV-DCD(R) with Subdweller Machine Gun Last Messages --------------- 01414_ SH-16D(R) emerges from the Twisted Machinery. 01423_ Critical hit (Meltdown: +270). 01423_ SH-16D(R) destroyed. 01426_ Sub. Power Source melted. 01426_ NE-9K4(R) destroyed. 01446_ Acquired 22 matter. 01451_ The unstable cave ceiling collapses. 01480_ Subatomizers dissect the Disposable Heat Sink. 01485_ The unstable cave ceiling collapses. 01492_ Subatomizers dissect the Disposable Heat Sink. 01511_ The unstable cave ceiling collapses. 01621_ Triggered Piercing Trap. 01621_ Spikes shoot up from the floor. 01621_ Critical hit (Impale). 01621_ Aluminum Leg destroyed. 01650_ Acquired 12 matter. 01722_ PR-HIL(R) destroyed. Map ----- +----------------------------------------------------+ | ??????????????????????# #### # | | ??????????????????????# #?# # # # | | ??????????????????????# ###### ### | | ??????????????????????# # # | | ??????????????????????## ## # | | ???????????????????????## # ## | | ????????????????????????## # # # ###### | | ?????????????????????????## ######## ##### | | ??????????????????????????# ????#### | | ??????????????????????????# ##???## # | | ??????????????????????????# ????# | | ??????????????????????????# ##???# | | ??????????????????????????## ##??# ## # ### | | ???????????????????????????## ##?#??##### #?# | | ????????????????????????????## ####????# ##?# | | ?????????????????????????????## # #??? ###?## | | ??????????????????????????????## ##??# ##???# | | ???????????????????????????????## ##?# ##?#### | | ????????????????????????????????## ########?## ### | | ?????????????????????????????????## ##?????# ## | | ???????????????????????????????### ####### | | ???????????????????????????????#^ # # # | | ??????????????????????????????## ^ | | ??????????????????????????##### | | ???????????????????????#### ## # # ## | | ???????????????????????# @ ^^###### #### | | ??????????????????????# # ^##????# #??# | | ????????????????????? ######### #????## #??# | | ??????????????????? R ????????## #???### ##?# | | ??????????????????# =%&"?????????# "#??## # ### | | ??????????????????# [ "?????????""##?## | | ????????????????? ??????????###??# # ## | | ???????????????? ???????????????# #### | | ??????????????? #???????????????## | | ????????????? #?????????????????# # # | | ?????????????? ??????????????????# # ### | | ?????????????? ### ??????????????????# #?? | | ???????????????? ??#??????????????????## # #### | | ???????????????????????????????????????# ### # | | ???????????????????????????????????????# ## # | | ???????????????????????????????????????## # # | | ????????????????????????????????????????# # | | ????????????????????????????????????????### | | ?????????????????????????????????????????## | | ?????????????????????????????????????????# | | ????????????????????????????????????????## | | ????????????????????????????????????????# | | ????????????????????????????????????????### | | ???????????????????????????????????????## | | ???????????????????????????????????????# | +----------------------------------------------------+ Best States ------------- Heat Dissipation 25 Energy Generation 10 Energy Capacity 250 Matter Stores 300 Matter Capacity 300 Sight Range 16 Terrain Scan Density 10 Armor Coverage 150 Evasion (%) 55 Item Schematics ----------------- None Robot Schematics ------------------ None Fabricated ------------ Nothing Alien Tech Used ----------------- None Achievements -------------- None Challenges ------------ None Game ------ Seed NuclearFireFacilitator Manual? 0 Play Time 00:14:20 Cumulative 62.8 hours Start 2025.03.13 @ 22:37:16 End 2025.03.13 @ 22:48:44 Sessions 1 Manual Loads 0 Difficulty Rogue Special Mode None Game No. 64 Rogue 64 Adventurer 0 Explorer 0 Win Type - Total 1 Types 1/0/0/0/0/0/0/0/0 Lore% 31 Gallery% 44 Achievement% 41 Wizard Run 0 Options --------- Layout 1 ASCII 0 Keyboard 1 Movement Numpad Keybinds 0 Fullscreen 1 Font 24/Smallcaps Map View 50x35 Zoom Use 0% Tactical HUD 1 Map Filters NONE Filters NONE Steam 1 RUN: 6f1aaa99-33b0-4ff6-a75c-6aacf19da467